[Event "BLR-ch Women 2020"]
[Site "Minsk"]
[Date "2020.10.20"]
[Round "3.3"]
[White "Norman, Kseniya"]
[Black "Astapchyk, Darya"]
[Result "1-0"]
[ECO "B01"]
[WhiteElo "1834"]
[BlackElo "1506"]
[Annotator "NA RC"]
[PlyCount "103"]
[EventDate "2020.10.18"]
[EventType "tourn"]
[EventCountry "BLR"]
[SourceTitle "playchess.com"]
[Source "ChessBase"]
[SourceQuality "1"]
[TimeControl "40/5400+30:1800+30"]

{[%evp 8,101,60,43,64,18,25,-16,19,18,23,19,42,32,20,22,20,32767,32767,24,33,32767,23,22,20,32767,49,3,40,18,65,38,48,31,66,66,71,58,108,108,125,111,131,129,138,138,241,139,123,127,130,98,448,105,103,77,87,60,95,0,83,0,96,98,32767,32767,32767,32767,32767,87,323,32767,32767,32767,32767,32767,375,32767,411,32767,477,464,445,502,32767,32767,32767,587,32767,32767,699,32767,691,858,32767,2767]} 1. e4 {[%emt 0:00:00]} d5 {[%emt 0:00:00]} 2. exd5 {[%emt 0:00:00]} Qxd5 {[%emt 0:00:00]} 3. Nc3 {[%emt 0:00:09]} Qd6 {[%emt 0:00:05]} 4. d4 {[%emt 0:02:19]} Nf6 {[%emt 0:00:21]} 5. Nf3 {[%emt 0:01:11]} c6 {[%emt 0:01:11]} 6. Bc4 {[%emt 0:02:46] B01: Scandinavian Defence.} Bg4 {[%emt 0:00:51]} 7. d5 {[%emt 0:06:40]} cxd5 {[%emt 0:11:43]} (7... b5 $5 {[%cal Rb5c4]} 8. Bd3 b4 $11) 8. Nxd5 {[%emt 0:02:10] [#]} Nc6 $146 {[%emt 0:16:30]} ({Predecessor:} 8... Nxd5 9. Qxd5 Qxd5 10. Bxd5 Bxf3 11. Bxf3 Nc6 12. O-O e6 13. Be3 Bd6 14. Rfd1 Ke7 {0-1 (50) Geyer,H (1313)-Sass,P (1598) Greifswald 2013}) 9. h3 {[%emt 0:16:37]} Nxd5 {[%emt 0:15:28]} 10. Qxd5 {[%emt 0:01:37]} (10. hxg4 $5 {[%cal Rd1d5]} Qb4+ 11. Nd2 $11) 10... Qxd5 {[%emt 0:12:21]} 11. Bxd5 {[%emt 0:00:02]} Bd7 {[%emt 0:01:17]} 12. c3 {[%emt 0:01:41]} e6 {[%emt 0:01:18]} 13. Bc4 {[%emt 0:01:56]} Bd6 {[%emt 0:02:00]} 14. O-O {[%emt 0:03:04]} Ne5 {[%emt 0:01:41]} 15. Be2 {[%emt 0:04:27]} Rc8 {[%emt 0:04:21]} 16. Be3 {[%emt 0:05:22]} b6 {[%emt 0:01:24]} 17. Rad1 {[%emt 0:02:38]} Ke7 {[%emt 0:05:21]} 18. Nd4 {[%emt 0:11:43]} Nc4 {[%emt 0:03:00]} 19. Bc1 {[%emt 0:00:28]} Rhd8 {[%emt 0:02:06]} 20. Rfe1 {[%emt 0:01:50]} e5 {[%emt 0:06:53]} 21. Bxc4 {[%emt 0:04:05]} Rxc4 {[%emt 0:00:12]} 22. f4 $1 {[%emt 0:00:49]} f6 {[%emt 0:02:29]} 23. fxe5 {[%emt 0:00:31]} Bxe5 {[%emt 0:01:43]} 24. Bf4 {[%emt 0:01:15]} Bc8 {[%emt 0:08:23]} 25. Bxe5 {[%emt 0:00:21]} fxe5 {[%emt 0:00:05]} 26. Rxe5+ {[%emt 0:00:23]} Kf7 {[%emt 0:00:25]} (26... Kf6 $16 27. Rde1 Rc7) 27. Rde1 {[%emt 0:00:29]} Rc7 {[%emt 0:00:53]} 28. R1e3 {[%emt 0:02:27]} g6 {[%emt 0:00:56]} 29. b4 {[%emt 0:01:39]} Rcd7 $2 {[%emt 0:00:45] [#]} (29... h5 $16 30. R5e4 Kf6) 30. Kh2 $2 {[%emt 0:00:52]} (30. Rf3+ $1 $18 {is the precise move to win.} Kg8 31. Nc6) 30... Bb7 $1 $11 {[%emt 0:00:22]} 31. Ne6 {[%emt 0:05:34]} Rc8 {[%emt 0:00:38]} 32. Ng5+ {[%emt 0:00:59]} Kf8 {[%emt 0:00:30]} 33. Ne6+ {[%emt 0:04:46]} ({White should try} 33. a3 $16) 33... Kf7 $1 {[%emt 0:00:11]} 34. Nd4 {[%emt 0:00:29]} (34. a4 $16) 34... Ba6 {[%emt 0:00:59]} 35. a4 {[%emt 0:04:33]} Bc4 {[%emt 0:00:32]} 36. Kg3 {[%emt 0:02:24]} Rdc7 {[%emt 0:00:29]} 37. b5 {[%emt 0:01:07]} Rd7 {[%emt 0:00:32]} 38. Nc6 {[%emt 0:00:31]} Bb3 $2 {[%emt 0:00:33]} (38... Kf8 $16) 39. Re7+ {[%emt 0:00:33]} Rxe7 {[%emt 0:00:04]} 40. Rxe7+ {[%emt 0:00:00]} Kf6 {[%emt 0:00:00]} 41. Rxa7 {[%emt 0:00:35]} Re8 {[%emt 0:05:15]} 42. Kf2 {[%emt 0:02:00]} Bc4 {[%emt 0:05:45]} 43. Nd4 {[%emt 0:01:23]} Kg5 {[%emt 0:05:26]} 44. Rc7 {[%emt 0:04:35]} Bd3 {[%emt 0:02:26]} 45. Rc6 {[%emt 0:08:02]} Rb8 {[%emt 0:04:20]} 46. c4 {[%emt 0:01:20]} Ra8 {[%emt 0:01:52]} 47. Nf3+ {[%emt 0:07:15]} Kf4 {[%emt 0:04:51]} 48. Rf6+ {[%emt 0:05:15]} Ke4 {[%emt 0:00:16]} 49. Re6+ {[%emt 0:01:51]} Kf5 {[%emt 0:01:14]} 50. Rxb6 {[%emt 0:01:05]} Rxa4 {[%emt 0:00:17]} 51. Ke3 $18 {[%emt 0:00:55]} Bxc4 {[%emt 0:00:49]} 52. g4# {[%emt 0:00:24]} 1-0

[Event "BLR-ch Women 2020"]
[Site "Minsk"]
[Date "2020.10.23"]
[Round "6.1"]
[White "Zeliantsova, Kseniya"]
[Black "Astapchyk, Darya"]
[Result "1-0"]
[ECO "C66"]
[WhiteElo "2114"]
[BlackElo "1506"]
[Annotator "ChessBase"]
[PlyCount "81"]
[EventDate "2020.10.18"]
[EventType "tourn"]
[EventCountry "BLR"]
[SourceTitle "playchess.com"]
[Source "ChessBase"]
[SourceQuality "1"]
[TimeControl "40/5400+30:1800+30"]

1. e4 {[%emt 0:00:00]} e5 {[%emt 0:00:00]} 2. Nf3 {[%emt 0:00:00]} Nc6 {[%emt 0:00:00]} 3. Bb5 {[%emt 0:00:00]} d6 {[%emt 0:00:00]} 4. d4 {[%emt 0:00:43]} Bd7 {[%emt 0:00:38]} 5. O-O {[%emt 0:01:00]} Nf6 {[%emt 0:00:43]} 6. Nc3 {[%emt 0:01:39]} Be7 {[%emt 0:01:21]} 7. Bg5 {[%emt 0:01:57]} O-O {[%emt 0:00:52]} 8. Bxc6 {[%emt 0:03:01]} Bxc6 {[%emt 0:01:11]} 9. dxe5 {[%emt 0:00:29]} Nxe4 {[%emt 0:03:59]} 10. Bxe7 {[%emt 0:04:28]} Qxe7 {[%emt 0:00:15]} 11. Nd5 {[%emt 0:01:31]} Qd7 {[%emt 0:10:06]} 12. c4 {[%emt 0:05:51]} Rae8 {[%emt 0:18:12]} 13. Re1 {[%emt 0:06:15]} f5 {[%emt 0:04:10]} 14. exf6 {[%emt 0:08:38]} Nxf6 {[%emt 0:00:45]} 15. Qd4 {[%emt 0:07:14]} Bxd5 {[%emt 0:13:19]} 16. cxd5 {[%emt 0:01:00]} Qf5 {[%emt 0:01:48]} 17. Qxa7 {[%emt 0:09:10]} Qxd5 {[%emt 0:01:06]} 18. Qa4 {[%emt 0:02:14]} Re4 {[%emt 0:04:21]} 19. Rxe4 {[%emt 0:00:34]} Qxe4 {[%emt 0:00:30]} 20. Qb3+ {[%emt 0:01:02]} Qd5 {[%emt 0:03:36]} 21. Qc2 {[%emt 0:01:50]} Qc5 {[%emt 0:04:12]} 22. Qxc5 {[%emt 0:03:37]} dxc5 {[%emt 0:00:05]} 23. Rd1 {[%emt 0:01:14]} h6 {[%emt 0:04:15]} 24. h3 {[%emt 0:05:17]} Re8 {[%emt 0:01:48]} 25. Kf1 {[%emt 0:02:18]} Kf7 {[%emt 0:01:02]} 26. Nd2 {[%emt 0:06:42]} Rd8 {[%emt 0:07:29]} 27. Ke2 {[%emt 0:02:06]} b6 {[%emt 0:01:34]} 28. Rc1 {[%emt 0:04:30]} Nd5 {[%emt 0:02:27]} 29. Rc4 {[%emt 0:03:44]} g5 {[%emt 0:03:07]} 30. g3 {[%emt 0:01:09]} Nb4 {[%emt 0:04:32]} 31. a4 {[%emt 0:03:08]} Re8+ {[%emt 0:03:24]} 32. Ne4 {[%emt 0:03:09]} Nc6 {[%emt 0:01:42]} 33. Ke3 {[%emt 0:04:12]} Ne5 {[%emt 0:02:16]} 34. Rc3 {[%emt 0:01:34]} Nc6 {[%emt 0:00:32]} 35. f4 {[%emt 0:02:14]} Nb4 {[%emt 0:01:09]} 36. Kf3 {[%emt 0:00:32]} gxf4 {[%emt 0:00:12]} 37. gxf4 {[%emt 0:00:04]} Ra8 {[%emt 0:00:28]} 38. b3 {[%emt 0:00:37]} Rg8 {[%emt 0:00:32]} 39. Ng3 {[%emt 0:01:08]} Nc6 {[%emt 0:00:53]} 40. Nf5 {[%emt 0:00:00]} h5 {[%emt 0:00:00]} 41. Nh6+ {[%emt 0:02:16]} 1-0

[Event "BLR-ch Women 2020"]
[Site "Minsk"]
[Date "2020.10.23"]
[Round "6.3"]
[White "Poliakova, Varvara"]
[Black "Tarasenka, Aliaksandra"]
[Result "0-1"]
[ECO "B33"]
[WhiteElo "1952"]
[BlackElo "2070"]
[Annotator "ChessBase"]
[PlyCount "94"]
[EventDate "2020.10.18"]
[EventType "tourn"]
[EventCountry "BLR"]
[SourceTitle "playchess.com"]
[Source "ChessBase"]
[SourceQuality "1"]
[TimeControl "40/5400+30:1800+30"]

1. e4 {[%emt 0:01:17]} c5 {[%emt 0:00:00]} 2. Nf3 {[%emt 0:00:09]} Nc6 {[%emt 0:00:00]} 3. d4 {[%emt 0:00:05]} cxd4 {[%emt 0:00:00]} 4. Nxd4 {[%emt 0:00:03]} Nf6 {[%emt 0:00:00]} 5. Nc3 {[%emt 0:01:39]} e5 {[%emt 0:00:09]} 6. Nb3 {[%emt 0:06:10]} Bb4 {[%emt 0:01:16]} 7. Bc4 {[%emt 0:07:45]} O-O {[%emt 0:12:29]} 8. Qd3 {[%emt 0:04:06]} d5 {[%emt 0:21:10]} 9. Bxd5 {[%emt 0:07:51]} Nxd5 {[%emt 0:01:05]} 10. exd5 {[%emt 0:01:44]} Ne7 {[%emt 0:01:41]} 11. Bd2 {[%emt 0:05:12]} Bf5 {[%emt 0:02:57]} 12. Ne4 {[%emt 0:12:44]} Bxd2+ {[%emt 0:05:53]} 13. Nbxd2 {[%emt 0:00:06]} Nxd5 {[%emt 0:03:49]} 14. O-O {[%emt 0:01:47]} Rc8 {[%emt 0:02:42]} 15. Rfd1 {[%emt 0:07:16]} Nf4 {[%emt 0:06:54]} 16. Qb5 {[%emt 0:05:44]} Qc7 {[%emt 0:03:31]} 17. Rac1 {[%emt 0:05:04]} a6 {[%emt 0:03:30]} 18. Qf1 {[%emt 0:00:12]} Qc6 {[%emt 0:02:35]} 19. Re1 {[%emt 0:06:12]} Rfd8 {[%emt 0:05:32]} 20. Re3 {[%emt 0:03:41]} Rd4 {[%emt 0:05:27]} 21. f3 {[%emt 0:09:11]} Qg6 {[%emt 0:05:42]} 22. Kh1 {[%emt 0:01:26]} Qh6 {[%emt 0:00:40]} 23. Rc3 {[%emt 0:01:25]} Rcd8 {[%emt 0:00:56]} 24. Ng3 {[%emt 0:03:21]} Bh3 {[%emt 0:03:13]} 25. gxh3 {[%emt 0:00:05]} Rxd2 {[%emt 0:00:05]} 26. Re1 {[%emt 0:01:47]} g6 {[%emt 0:02:47]} 27. Rc7 {[%emt 0:03:52]} Nxh3 {[%emt 0:02:50]} 28. Ne4 {[%emt 0:00:24]} Nf4 {[%emt 0:01:46]} 29. Nxd2 {[%emt 0:00:38]} Rxd2 {[%emt 0:00:07]} 30. Qg1 {[%emt 0:00:28]} Rg2 {[%emt 0:03:02]} 31. Qxg2 {[%emt 0:00:05]} Nxg2 {[%emt 0:00:04]} 32. Kxg2 {[%emt 0:00:05]} Qd2+ {[%emt 0:00:11]} 33. Kf1 {[%emt 0:00:04]} Qxh2 {[%emt 0:00:26]} 34. Rc3 {[%emt 0:03:13]} h5 {[%emt 0:00:33]} 35. Rce3 {[%emt 0:01:00]} h4 {[%emt 0:01:15]} 36. R3e2 {[%emt 0:00:38]} Qg3 {[%emt 0:00:37]} 37. Rf2 {[%emt 0:00:13]} h3 {[%emt 0:01:00]} 38. Ke2 {[%emt 0:00:10]} Qf4 {[%emt 0:00:33]} 39. Rh1 {[%emt 0:00:49]} Qc4+ {[%emt 0:00:15]} 40. Kd1 {[%emt 0:00:00]} Qxa2 {[%emt 0:00:00]} 41. Rxh3 {[%emt 0:01:16]} Qxb2 {[%emt 0:01:35]} 42. Rh4 {[%emt 0:01:36]} Qb1+ {[%emt 0:01:20]} 43. Kd2 {[%emt 0:00:07]} Qg1 {[%emt 0:00:43]} 44. Ke2 {[%emt 0:00:43]} b5 {[%emt 0:01:22]} 45. Re4 {[%emt 0:00:11]} Qc1 {[%emt 0:00:49]} 46. Kd3 {[%emt 0:00:24]} Qd1+ {[%emt 0:00:47]} 47. Kc3 {[%emt 0:00:13]} f5 {[%emt 0:30:12]} 0-1